fUSD/lending_fUSD_20260429
["ID","MTS","AMOUNT","RATE_DAILY","PERIOD"]
[421322656,1777434633274,-265.0,8.894e-05,2]
[421322657,1777434633284,-578.20924308,9.075e-05,2]
[421322658,1777434633295,-300.0,9.707e-05,2]
[421322659,1777434633305,-1200.0,9.707e-05,2]
[421322661,1777434633316,-300.0,9.707e-05,2]
[421322662,1777434633326,-9000.27943751,9.708e-05,2]
[421322663,1777434633337,-151.0,9.777e-05,2]
[421322664,1777434633347,-174.61919141,9.777e-05,2]
[421322665,1777434633357,-1000.0,9.782e-05,2]
[421322667,1777434633368,-999.99,9.782e-05,2]
[421322668,1777434633380,-9999.99,9.782e-05,2]
[421322669,1777434633391,-150.0,9.782e-05,2]
[421322670,1777434633401,-4056.34536773,9.782e-05,2]
[421322671,1777434633415,-5943.64463227,9.782e-05,2]
[421322674,1777434633425,-12676.60861263,9.782e-05,2]
[421322687,1777434633536,-544.70059499,9.782e-05,2]
[421322709,1777434638661,-18273.06079238,9.782e-05,2]
[421322710,1777434638672,-9999.99,9.782e-05,2]
[421322711,1777434638682,-432.51,9.782e-05,2]
[421322712,1777434638693,-9999.99,9.783e-05,2]
[421322713,1777434638702,-500.0,9.783e-05,2]
[421322714,1777434638713,-360.01,9.783e-05,2]
[421322716,1777434638723,-4999.99,9.783e-05,2]
[421322718,1777434638733,-299.99,9.783e-05,2]
[421322720,1777434638743,-250.0,9.783e-05,2]
[421322722,1777434638752,-250.0,9.783e-05,2]
[421322724,1777434638763,-151.0,9.832e-05,2]
[421322727,1777434638773,-151.0,9.887e-05,2]
[421322729,1777434638783,-743.50770149,9.941e-05,2]
[421322731,1777434638793,-200.0,9.941e-05,2]
[421322733,1777434638803,-721.12765535,9.941e-05,2]
[421322735,1777434638812,-1428.38747117,9.941e-05,2]
[421322737,1777434638822,-209.40437684,9.941e-05,2]
[421322739,1777434638831,-151.0,9.942e-05,2]
[421322741,1777434638842,-6737.89,9.947e-05,2]
[421322743,1777434638852,-151.0,9.997e-05,2]
[421322745,1777434638861,-200.0,0.0001,2]
[421322747,1777434638871,-500.0,0.0001,2]
[421322749,1777434638882,-151.0,0.0001,2]
[421322751,1777434638892,-500.0,0.0001,2]
[421322753,1777434638901,-151.0,0.0001,2]
[421322755,1777434638911,-500.0,0.0001,2]
[421322757,1777434638921,-151.0,0.0001,2]
[421322759,1777434638931,-500.0,0.0001,2]
[421322761,1777434638940,-151.0,0.0001,2]
[421322763,1777434638950,-500.0,0.0001,2]
[421322765,1777434638960,-151.0,0.0001,2]
[421322767,1777434638969,-500.0,0.0001,2]
[421322769,1777434638979,-151.0,0.0001,2]
[421322771,1777434638989,-500.0,0.0001,2]
[421322773,1777434638999,-151.0,0.0001,2]
[421322775,1777434639009,-500.0,0.0001,2]
[421322777,1777434639019,-151.0,0.0001,2]
[421322779,1777434639029,-500.0,0.0001,2]
[421322781,1777434639040,-151.0,0.0001,2]
[421322783,1777434639050,-151.0,0.0001,2]
[421322785,1777434639060,-500.0,0.0001,2]
[421322788,1777434639070,-151.0,0.0001,2]
[421322790,1777434639080,-500.0,0.0001,2]
[421322792,1777434639089,-500.0,0.0001,2]
[421322794,1777434639099,-500.0,0.0001,2]
[421322796,1777434639109,-151.0,0.0001,2]
[421322798,1777434639119,-500.0,0.0001,2]
[421322800,1777434639129,-151.0,0.0001,2]
[421322802,1777434639139,-500.0,0.0001,2]
[421322804,1777434639149,-151.0,0.0001,2]
[421322805,1777434639159,-500.0,0.0001,2]
[421322807,1777434639168,-151.0,0.0001,2]
[421322809,1777434639179,-500.0,0.0001,2]
[421322811,1777434639189,-151.0,0.0001,2]
[421322813,1777434639199,-500.0,0.0001,2]
[421322815,1777434639209,-500.0,0.0001,2]
[421322817,1777434639219,-151.0,0.0001,2]
[421322819,1777434639229,-500.0,0.0001,2]
[421322822,1777434639240,-151.0,0.0001,2]
[421322824,1777434639249,-500.0,0.0001,2]
[421322826,1777434639259,-151.0,0.0001,2]
[421322827,1777434639268,-500.0,0.0001,2]
[421322829,1777434639278,-151.0,0.0001,2]
[421322831,1777434639288,-151.0,0.0001,2]
[421322834,1777434639298,-500.0,0.0001,2]
[421322836,1777434639309,-151.0,0.0001,2]
[421322838,1777434639318,-151.0,0.0001,2]
[421322840,1777434639328,-151.0,0.0001,2]
[421322842,1777434639338,-151.0,0.0001,2]
[421322844,1777434639347,-151.0,0.0001,2]
[421322846,1777434639358,-151.0,0.0001,2]
[421322848,1777434639368,-151.0,0.0001,2]
[421322850,1777434639378,-151.0,0.0001,2]
[421322852,1777434639388,-151.0,0.0001,2]
[421322854,1777434639400,-151.0,0.0001,2]
[421322856,1777434639410,-153.02375781,0.0001,2]
[421322858,1777434639419,-1386.78395259,0.0001,2]
[421322861,1777434639430,-322.46,0.00010047,2]
[421322863,1777434639440,-151.0,0.00010052,2]
[421322865,1777434639450,-151.0,0.00010107,2]
[421322867,1777434639460,-151.0,0.00010162,2]
[421322869,1777434639471,-151.0,0.00010217,2]
[421322871,1777434639482,-3532.0,0.00010268,2]
[421322873,1777434639492,-1049.0,0.00010268,2]
[421322875,1777434639503,-623.0,0.00010268,2]
[421322877,1777434639513,-150.0,0.00010268,2]
[421322879,1777434639522,-1278.647,0.00010268,2]
[421322881,1777434639532,-929.447,0.00010268,2]
[421322883,1777434639542,-420.245,0.00010268,2]
[421322885,1777434639552,-6036.0,0.00010268,2]
[421322887,1777434639562,-151.0,0.00010272,2]
[421322889,1777434639572,-500.0,0.00010274,2]
[421322891,1777434639581,-181.08010149,0.00010325,2]
[421322893,1777434639591,-151.0,0.00010327,2]
[421322895,1777434639600,-500.0,0.00010363,2]
[421322897,1777434639610,-500.0,0.00010363,2]
[421322899,1777434639620,-500.0,0.00010363,2]
[421322901,1777434639630,-591.00235493,0.00010363,2]
[421322903,1777434639640,-500.0,0.00010428,2]
[421322905,1777434639650,-500.0,0.00010428,2]
[421322907,1777434639660,-500.0,0.00010428,2]
[421322909,1777434639670,-500.0,0.00010428,2]
[421322911,1777434639680,-500.0,0.00010428,2]
[421322913,1777434639690,-343.34455716,0.00010428,2]
[421322915,1777434639700,-921.94501352,0.00010489,2]
[421322917,1777434639709,-200.0,0.00010489,2]
[421322919,1777434639719,-1481.23780761,0.00010489,2]
[421322921,1777434639728,-303.30305987,0.00010489,2]
[421322923,1777434639738,-500.0,0.00010548,2]
[421322925,1777434639747,-200.0,0.00010548,2]
[421322927,1777434639757,-151.0,0.00010548,2]
[421322929,1777434639767,-1438.09495884,0.00010548,2]
[421322931,1777434639776,-1680.0,0.00010677,2]
[421322933,1777434639786,-420.0,0.00010677,2]
[421322935,1777434639796,-1037.8860493,0.00010702,2]
[421322937,1777434639806,-255.0,0.0001076,2]
[421322939,1777434639816,-150.0,0.000108,2]
[421322941,1777434639825,-150.0,0.000108,2]
[421322943,1777434639835,-150.0,0.000108,2]
[421322945,1777434639844,-150.0,0.000108,2]
[421322947,1777434639854,-150.0,0.000108,2]
[421322949,1777434639863,-168.25248826,0.000108,2]
[421322951,1777434639873,-150.0,0.000108,2]
[421322953,1777434639883,-150.0,0.000108,2]
[421322955,1777434639893,-150.0,0.000108,2]
[421322957,1777434639904,-260.91962355,0.0001081,2]
[421322959,1777434639913,-150.0,0.00010816,2]
[421322961,1777434639923,-500.0,0.00010822,2]
[421322963,1777434639933,-150.0,0.00010832,2]
[421322965,1777434639942,-150.0,0.00010843,2]
[421322967,1777434639952,-150.0,0.00010848,2]
[421322969,1777434639962,-501.0,0.00010849,2]
[421322971,1777434639973,-150.0,0.00010863,2]
[421322972,1777434639982,-150.0,0.00010863,2]
[421322973,1777434639992,-150.0,0.00010864,2]
[421322974,1777434640002,-187.78006525,0.00010873,2]
[421322975,1777434640013,-1646.813776,0.00010877,2]
[421322977,1777434640023,-2976.545143,0.00010877,2]
[421322978,1777434640033,-1481.268212,0.00010877,2]
[421322979,1777434640043,-3226.169747,0.00010877,2]
[421322980,1777434640053,-160.0,0.00010877,2]
[421322981,1777434640062,-3134.094291,0.00010877,2]
[421322982,1777434640072,-941.036445,0.00010877,2]
[421322983,1777434640083,-1392.980073,0.00010877,2]
[421322985,1777434640094,-725.864686,0.00010877,2]
[421322986,1777434640104,-150.0,0.0001088,2]
[421322987,1777434640115,-150.0,0.0001088,2]
[421322988,1777434640125,-150.0,0.00010886,2]
[421322989,1777434640134,-150.0,0.00010886,2]
[421322990,1777434640145,-691.64153846,0.0001089,2]
[421322991,1777434640156,-150.0,0.00010896,2]
[421322992,1777434640166,-150.0,0.00010912,2]
[421322993,1777434640176,-150.0,0.00010926,2]
[421322994,1777434640187,-150.0,0.00010926,2]
[421322995,1777434640197,-150.0,0.00010928,2]
[421322996,1777434640207,-150.0,0.00010929,2]
[421322997,1777434640217,-150.0,0.00010933,2]
[421322998,1777434640227,-150.0,0.00010944,2]
[421322999,1777434640237,-500.0,0.00010959,2]
[421323000,1777434640247,-281.57734418,0.00010959,2]
[421323001,1777434640257,-150.0,0.0001096,2]
[421323002,1777434640267,-150.0,0.0001096,2]
[421323003,1777434640277,-150.0,0.00010971,2]
[421323004,1777434640286,-150.0,0.00010971,2]
[421323006,1777434640297,-150.0,0.00010976,2]
[421323007,1777434640307,-150.0,0.00010989,2]
[421323008,1777434640318,-150.0,0.00010989,2]
[421323009,1777434640328,-150.0,0.00010992,2]
[421323010,1777434640340,-4223.7300438,0.00010999,2]
[421323011,1777434640349,-196.83,0.00011,2]
[421323012,1777434640359,-196.83,0.00011,2]
[421323013,1777434640368,-196.83,0.00011,2]
[421323014,1777434640378,-150.0,0.00011008,2]
[421323015,1777434640645,-150.0,0.00011014,2]
[421323016,1777434640655,-150.0,0.00011024,2]
[421323017,1777434640665,-200.0,0.00011037,2]
[421323018,1777434640676,-1536.04360649,0.00011037,2]
[421323019,1777434640686,-150.0,0.0001104,2]
[421323020,1777434640696,-150.0,0.0001104,2]
[421323021,1777434640706,-150.0,0.00011053,2]
[421323022,1777434640716,-150.0,0.00011053,2]
[421323023,1777434640726,-150.0,0.00011056,2]
[421323024,1777434640737,-150.0,0.00011057,2]
[421323025,1777434640746,-150.0,0.00011057,2]
[421323026,1777434640756,-150.0,0.00011067,2]
[421323027,1777434640766,-150.0,0.00011072,2]
[421323028,1777434640776,-408.34820023,0.00011073,2]
[421323029,1777434640786,-502.93754583,0.00011073,2]
[421323030,1777434640796,-500.0,0.00011073,2]
[421323031,1777434640806,-150.0,0.00011088,2]
[421323032,1777434640817,-500.0,0.00011096,2]
[421323033,1777434640828,-200.0,0.00011096,2]
[421323034,1777434640838,-151.0,0.00011096,2]
[421323035,1777434640848,-1491.30447232,0.00011096,2]
[421323036,1777434640859,-36362.86742018,0.00011099,2]
[421323037,1777434640869,-36362.86742014,0.00011099,2]
[421323038,1777434640879,-36362.86742014,0.00011099,2]
[421323039,1777434640889,-36362.86742014,0.00011099,2]
[421323040,1777434640899,-36362.86742014,0.00011099,2]
[421323041,1777434640909,-36362.86742014,0.00011099,2]
[421323042,1777434640919,-150.0,0.000111,2]
[421323043,1777434640929,-150.0,0.000111,2]
[421323044,1777434640939,-150.0,0.00011104,2]
[421323045,1777434640949,-150.0,0.00011116,2]
[421323046,1777434640959,-150.0,0.00011116,2]
[421323047,1777434640970,-150.0,0.0001112,2]
[421323048,1777434640980,-150.0,0.0001112,2]
[421323049,1777434640990,-150.0,0.00011136,2]
[421323050,1777434641000,-150.0,0.00011143,2]
[421323051,1777434641010,-150.0,0.00011143,2]
[421323052,1777434641020,-150.0,0.00011152,2]
[421323053,1777434641030,-150.0,0.00011168,2]
[421323054,1777434641040,-150.0,0.00011179,2]
[421323056,1777434641050,-150.0,0.00011179,2]
[421323057,1777434641060,-150.0,0.00011184,2]
[421323058,1777434641070,-150.0,0.00011186,2]
[421323059,1777434641080,-150.0,0.000112,2]
[421323060,1777434641090,-150.0,0.000112,2]
[421323062,1777434641101,-150.0,0.000112,2]
[421323063,1777434641111,-520.1074,0.00011201,2]
[421323064,1777434641122,-36362.86742014,0.00011216,2]
[421323065,1777434641131,-150.0,0.00011216,2]
[421323066,1777434641141,-150.0,0.00011229,2]
[421323067,1777434641152,-150.0,0.00011229,2]
[421323068,1777434641162,-150.0,0.00011232,2]
[421323069,1777434641173,-150.0,0.00011242,2]
[421323070,1777434641182,-150.0,0.00011242,2]
[421323071,1777434641193,-150.0,0.00011248,2]
[421323072,1777434641203,-150.0,0.00011264,2]
[421323073,1777434641212,-150.0,0.00011271,2]
[421323074,1777434641223,-150.0,0.0001128,2]
[421323075,1777434641232,-150.0,0.0001128,2]
[421323076,1777434641242,-150.0,0.00011296,2]
[421323077,1777434641252,-150.0,0.00011305,2]
[421323078,1777434641263,-150.0,0.00011305,2]
[421323079,1777434641274,-150.0,0.00011312,2]
[421323080,1777434641283,-150.0,0.00011314,2]
[421323081,1777434641294,-150.0,0.00011314,2]
[421323082,1777434641305,-500.0,0.00011319,2]
[421323083,1777434641315,-11873.84361677,0.0001132,2]
[421323084,1777434641326,-3960.94,0.00011324,2]
[421323085,1777434641336,-269.69,0.00011324,2]
[421323086,1777434641345,-150.0,0.00011328,2]
[421323087,1777434641355,-150.0,0.00011333,2]
[421323088,1777434641365,-150.0,0.00011344,2]
[421323089,1777434641374,-150.0,0.00011357,2]
[421323090,1777434641384,-150.0,0.0001136,2]
[421323091,1777434641394,-150.0,0.0001136,2]
[421323092,1777434641404,-150.0,0.00011368,2]
[421323093,1777434641415,-150.0,0.00011368,2]
[421323094,1777434641426,-447.6138794,0.0001137,2]
[421323095,1777434641437,-503.64121937,0.00011373,2]
[421323096,1777434641448,-500.0,0.00011373,2]
[421323097,1777434641459,-503.28830134,0.00011373,2]
[421323098,1777434641469,-501.4160514,0.00011373,2]
[421323099,1777434641479,-150.0,0.00011376,2]
[421323100,1777434641489,-150.0,0.00011392,2]
[421323101,1777434641499,-485.728556,0.000114,2]
[421323102,1777434641509,-8011.36685006,0.000114,2]
[421323103,1777434641520,-138508.73525665,0.000114,2]
[421323104,1777434641530,-150.0,0.000114,2]
[421323105,1777434641540,-150.0,0.000114,2]
[421323106,1777434641550,-150.0,0.000114,2]
[421323107,1777434641560,-150.0,0.00011408,2]
[421323108,1777434641571,-194.72792766,0.00011421,2]
[421323109,1777434641580,-150.0,0.00011424,2]
[421323110,1777434641590,-150.0,0.00011432,2]
[421323111,1777434641600,-150.0,0.00011432,2]
[421323112,1777434641610,-500.0,0.00011439,2]
[421323113,1777434641621,-500.0,0.00011439,2]
[421323114,1777434641631,-500.0,0.00011439,2]
[421323115,1777434641641,-500.0,0.00011439,2]
[421323116,1777434641651,-500.0,0.00011439,2]
[421323117,1777434641662,-500.0,0.00011439,2]
[421323118,1777434641672,-500.0,0.00011439,2]
[421323119,1777434641683,-500.0,0.00011439,2]
[421323120,1777434641693,-500.0,0.00011439,2]
[421323121,1777434641704,-500.0,0.00011439,2]
[421323122,1777434641715,-500.0,0.00011439,2]
[421323123,1777434641727,-500.0,0.00011439,2]
[421323124,1777434641738,-500.0,0.00011439,2]
[421323125,1777434641747,-500.0,0.00011439,2]
[421323126,1777434641759,-500.0,0.00011439,2]
[421323127,1777434641769,-500.0,0.00011439,2]
[421323128,1777434641780,-500.0,0.00011439,2]
[421323129,1777434641791,-500.0,0.00011439,2]
[421323130,1777434641801,-500.0,0.00011439,2]
[421323131,1777434641810,-500.0,0.00011439,2]
[421323132,1777434641821,-500.0,0.00011439,2]
[421323133,1777434641831,-241.9132897,0.00011439,2]
[421323134,1777434641843,-150.0,0.0001144,2]
[421323135,1777434641854,-150.0,0.0001144,2]
[421323136,1777434641865,-150.0,0.00011443,2]
[421323137,1777434641875,-36362.86742014,0.00011444,2]
[421323138,1777434641885,-150.0,0.00011456,2]
[421323139,1777434641895,-150.0,0.00011467,2]
[421323140,1777434641905,-150.0,0.00011472,2]
[421323141,1777434641915,-150.0,0.00011486,2]
[421323142,1777434641926,-150.0,0.00011486,2]
[421323143,1777434641936,-150.0,0.00011488,2]
[421323144,1777434641946,-1456.85287576,0.00011488,2]
[421323145,1777434641956,-591.9658418,0.00011488,2]
[421323146,1777434641966,-150.0,0.00011495,2]
[421323147,1777434641976,-150.0,0.00011495,2]
[421323148,1777434641986,-150.0,0.00011504,2]
[421323149,1777434641996,-150.0,0.0001152,2]
[421323150,1777434642022,-150.0,0.0001152,2]
[421323151,1777434642035,-150.0,0.00011529,2]
[421323152,1777434642046,-150.0,0.00011536,2]
[421323153,1777434642056,-322.46,0.00011547,2]
[421323154,1777434642067,-150.0,0.00011552,2]
[421323155,1777434642077,-150.0,0.00011558,2]
[421323156,1777434642088,-150.0,0.00011558,2]
[421323157,1777434642099,-150.0,0.00011568,2]
[421323158,1777434642110,-150.0,0.00011571,2]
[421323159,1777434642121,-150.0,0.00011571,2]
[421323160,1777434642132,-150.0,0.00011584,2]
[421323161,1777434642142,-200.0,0.00011585,2]
[421323162,1777434642153,-1592.87721993,0.00011585,2]
[421323163,1777434642163,-150.0,0.000116,2]
[421323164,1777434642173,-150.0,0.000116,2]
[421323165,1777434642184,-150.0,0.000116,2]
[421323166,1777434642195,-150.0,0.00011614,2]
[421323167,1777434642207,-150.0,0.00011616,2]
[421323168,1777434642219,-1004.07861141,0.00011621,2]
[421323169,1777434642230,-150.0,0.00011621,2]
[421323170,1777434642242,-150.0,0.00011621,2]
[421323171,1777434642252,-150.0,0.00011632,2]
[421323172,1777434642262,-200.0,0.00011644,2]
[421323173,1777434642273,-151.0,0.00011644,2]
[421323174,1777434642284,-1515.09439487,0.00011644,2]
[421323175,1777434642295,-150.0,0.00011648,2]
[421323176,1777434642306,-150.0,0.00011657,2]
[421323177,1777434642318,-150.0,0.00011657,2]
[421323178,1777434642329,-250.0,0.00011664,2]
[421323179,1777434642340,-150.0,0.00011664,2]
[421323180,1777434642351,-36362.86742014,0.00011672,2]
[421323181,1777434642361,-150.0,0.0001168,2]
[421323182,1777434642372,-150.0,0.0001168,2]
[421323183,1777434642384,-150.0,0.00011684,2]
[421323184,1777434642395,-150.0,0.00011684,2]
[421323185,1777434642406,-150.0,0.00011696,2]
[421323186,1777434642417,-150.0,0.000117,2]
[421323187,1777434642428,-150.0,0.000117,2]
[421323188,1777434642439,-150.0,0.00011712,2]
[421323189,1777434642449,-150.0,0.00011728,2]
[421323190,1777434642460,-150.0,0.00011733,2]
[421323191,1777434642471,-150.0,0.00011743,2]
[421323192,1777434642483,-150.0,0.00011743,2]
[421323193,1777434642493,-150.0,0.00011744,2]
[421323194,1777434642504,-2351.0,0.00011745,2]
[421323195,1777434642515,-587.0,0.00011745,2]
[421323196,1777434642525,-150.0,0.00011747,2]
[421323197,1777434642536,-150.0,0.00011747,2]
[421323198,1777434642547,-250.0,0.00011751,2]
[421323199,1777434642557,-3978.69331706,0.0001176,2]
[421323200,1777434642568,-150.0,0.0001176,2]
[421323201,1777434642580,-150.0,0.0001176,2]
[421323202,1777434642591,-150.0,0.00011776,2]
[421323203,1777434642601,-150.0,0.00011786,2]
[421323204,1777434642612,-150.0,0.00011792,2]
[421323205,1777434642622,-5000.0,0.000118,2]
[421323206,1777434642633,-310.86726141,0.000118,2]
[421323207,1777434642644,-3793.0,0.000118,2]
[421323208,1777434642654,-150.0,0.00011808,2]
[421323209,1777434642665,-150.0,0.00011811,2]
[421323210,1777434642676,-150.0,0.00011811,2]
[421323211,1777434642686,-599.60298507,0.00011814,2]
[421323212,1777434642697,-150.0,0.00011824,2]
[421323213,1777434642707,-150.0,0.00011829,2]
[421323214,1777434642718,-150.0,0.00011829,2]
[421323215,1777434642729,-433.0,0.00011836,2]
[421323216,1777434642739,-150.0,0.0001184,2]
[421323217,1777434642750,-150.0,0.0001184,2]
[421323218,1777434642760,-150.0,0.00011856,2]
[421323219,1777434642771,-150.0,0.00011867,2]
[421323220,1777434642781,-150.0,0.00011871,2]
[421323221,1777434642792,-150.0,0.00011872,2]
[421323222,1777434642802,-500.0,0.00011873,2]
[421323223,1777434642812,-150.0,0.00011874,2]
[421323224,1777434642823,-150.0,0.00011874,2]
[421323225,1777434642834,-12000.4687209,0.0001188,2]
[421323226,1777434642845,-793.7722,0.0001188,2]
[421323227,1777434642855,-793.77221,0.0001188,2]
[421323228,1777434642865,-150.0,0.00011888,2]
[421323229,1777434642875,-793.7722,0.0001189,2]
[421323230,1777434642885,-923.03991213,0.0001189,2]
[421323231,1777434642895,-322.46,0.00011894,2]
[421323232,1777434642906,-3539.28992609,0.00011899,2]
[421323233,1777434642916,-406.9,0.00011899,2]
[421323234,1777434642926,-152.0,0.000119,5]
[421323235,1777434642937,-151.51101416,0.000119,2]
[421323236,1777434642947,-154.03039825,0.000119,2]
[421323237,1777434642957,-157904.47162385,0.000119,2]
[421323241,1777434643133,-4792.517481,9.658e-05,2]
[421323242,1777434643143,-413454.58327615,0.000119,2]
[421323243,1777434643154,-2940.22552673,0.000119,2]
[421323244,1777434643165,-36362.86742014,0.000119,2]
[421323245,1777434643175,-151.0,0.000119,2]
[421323246,1777434643185,-151.0,0.000119,2]
[421323247,1777434643195,-151.0,0.000119,2]
[421323248,1777434643206,-235.000003,0.000119,2]
[421323249,1777434643216,-198.36461733,0.000119,2]
[421323250,1777434643226,-151.0,0.000119,2]
[421323251,1777434643236,-220.14198,0.000119,2]
[421323252,1777434643246,-576.03225762,0.000119,2]
[421323253,1777434643256,-151.0,0.000119,2]
[421323254,1777434643267,-345.75211,0.000119,2]
[421323255,1777434643277,-345.75211,0.000119,2]
[421323256,1777434643288,-345.75211,0.000119,2]
[421323257,1777434643298,-345.75211,0.000119,2]
[421323258,1777434643308,-1720.68141808,0.000119,2]
[421323259,1777434643318,-200.0,0.00011903,2]
[421323260,1777434643328,-200.0,0.00011904,2]
[421323261,1777434643339,-200.0,0.00011904,2]
[421323262,1777434643351,-150.0,0.00011904,2]
[421323263,1777434643360,-1763.45503653,0.00011904,2]
[421323264,1777434643370,-793.77221,0.0001191,2]
[421323265,1777434643380,-150.0,0.00011914,2]
[421323266,1777434643391,-150.0,0.00011914,2]
[421323267,1777434643401,-150.0,0.0001192,2]
[421323268,1777434643411,-150.0,0.0001192,2]
[421323269,1777434643421,-1000.0,0.00011921,2]
[421323270,1777434643431,-350.0,0.00011934,2]
[421323271,1777434643441,-150.0,0.00011936,2]
[421323272,1777434643451,-150.0,0.00011937,2]
[421323273,1777434643462,-150.0,0.00011937,2]
[421323274,1777434643473,-150.0,0.00011952,2]
[421323275,1777434643483,-150.0,0.00011957,2]
[421323276,1777434643493,-150.0,0.00011968,2]
[421323277,1777434643503,-201.93286099,0.00011969,2]
[421323278,1777434643514,-1000.0,0.0001197,2]
[421323279,1777434643524,-500.0,0.0001197,2]
[421323280,1777434643534,-1000.0,0.0001197,2]
[421323281,1777434643545,-675.70396921,0.0001197,2]
[421323282,1777434643554,-1000.0,0.0001197,2]
[421323283,1777434643565,-1673.09741793,0.0001197,2]
[421323284,1777434643574,-63799.0,0.00011973,2]
[421323285,1777434643584,-7399.0,0.00011973,2]
[421323286,1777434643594,-350.0,0.0001198,2]
[421323287,1777434643604,-150.0,0.00011984,2]
[421323288,1777434643614,-484.46,0.00011988,2]
[421323289,1777434643623,-2000.0,0.00011988,2]
[421323290,1777434643633,-314.63,0.00011988,2]
[421323291,1777434643643,-161.0,0.0001199,2]
[421323292,1777434643652,-923.03991213,0.0001199,2]
[421323293,1777434643662,-923.03991213,0.0001199,2]
[421323294,1777434643671,-600.0,0.00011999,2]
[421323295,1777434643681,-300.0,0.00011999,2]
[421323296,1777434643692,-674.09738241,0.00011999,2]
[421323297,1777434643702,-2054.4543958,0.00011999,2]
[421323298,1777434643711,-22908.2986918,0.00011999,2]
[421323299,1777434643721,-65398.6895376,0.00011999,2]
[421323300,1777434643731,-16781.8537798,0.00011999,2]
[421323301,1777434643741,-6038.2778109,0.00011999,2]
[421323302,1777434643751,-4706059.63265419,0.00012,2]
[421323303,1777434643762,-109452.17337463,0.00012,2]
[421323304,1777434643772,-377.68,0.00012,2]
[421323305,1777434643782,-151.0,0.00012,2]
[421323306,1777434643793,-790.44064626,0.00012,2]
[421323307,1777434643803,-200.0,0.00012,2]
[421323308,1777434643814,-151.0,0.00012,2]
[421323309,1777434643826,-201.49777637,0.00012,2]
[421323310,1777434643837,-1533.0,0.00012,2]
[421323311,1777434643847,-153.70235998,0.00012,2]
[421323312,1777434643859,-1533.0,0.00012,2]
[421323313,1777434643869,-1533.0,0.00012,2]
[421323314,1777434643880,-1533.0,0.00012,2]
[421323315,1777434643889,-1533.0,0.00012,2]
[421323316,1777434643900,-1533.0,0.00012,2]
[421323317,1777434643910,-1533.0,0.00012,2]
[421323318,1777434643920,-1533.0,0.00012,2]
[421323319,1777434643930,-1533.0,0.00012,2]
[421323320,1777434643940,-1533.0,0.00012,2]
[421323321,1777434643951,-1533.0,0.00012,2]
[421323322,1777434643962,-1533.0,0.00012,2]
[421323323,1777434643972,-1533.0,0.00012,2]
[421323324,1777434643982,-1533.0,0.00012,2]
[421323325,1777434643992,-1533.0,0.00012,2]
[421323326,1777434644003,-1533.0,0.00012,2]
[421323327,1777434644014,-1533.0,0.00012,2]
[421323328,1777434644024,-1533.0,0.00012,2]
[421323329,1777434644034,-1087.53959526,0.00012,2]
[421323330,1777434644044,-256.86860233,0.00012,2]